bitfinex-derivatives/quotes_BTCF0:USTF0_20250910
["timestamp","ask_amount","ask_price","bid_price","bid_amount"]
[1757511107732,0.003,113550.0,113540.0,0.03628]
[1757511108134,0.52865664,113550.0,113540.0,0.03628]
[1757511108526,1.35585664,113550.0,113540.0,0.03628]
[1757511109431,0.3638,113550.0,113540.0,0.03628]
[1757511109832,0.52865664,113550.0,113540.0,0.03628]
[1757511110030,0.52865664,113550.0,113540.0,0.01498]
[1757511110934,0.77865664,113550.0,113540.0,0.01498]
[1757511111134,0.94351328,113550.0,113540.0,0.01498]
[1757511111335,0.77865664,113550.0,113540.0,0.01498]
[1757511111927,0.3638,113550.0,113540.0,0.20113664]
[1757511112128,0.003,113550.0,113540.0,0.45113664]
[1757511113530,0.003,113550.0,113540.0,0.28628]
[1757511113726,0.003,113550.0,113540.0,0.81193664]
[1757511114330,0.003,113550.0,113540.0,1.63893664]
[1757511114531,0.02089352,113570.0,113560.0,0.03528]
[1757511114836,0.02089352,113570.0,113560.0,0.20013664]
[1757511115025,0.02089352,113570.0,113560.0,0.56093664]
[1757511115337,0.02089352,113570.0,113560.0,1.38793664]
[1757511116538,0.02589352,113570.0,113560.0,1.38793664]
[1757511117135,0.02589352,113570.0,113560.0,1.38833664]
[1757511117828,0.02589352,113570.0,113560.0,0.03528]
[1757511118034,0.02589352,113570.0,113560.0,0.86276]
[1757511118540,0.55155016,113570.0,113560.0,0.03528]
[1757511118735,0.38669352,113570.0,113560.0,0.03528]
[1757511118935,0.55155016,113570.0,113560.0,0.03528]
[1757511119241,0.38669352,113570.0,113560.0,0.03528]
[1757511120040,0.38669352,113570.0,113560.0,0.20013664]
[1757511120234,0.02589352,113570.0,113560.0,0.20013664]
[1757511120440,0.02589352,113570.0,113560.0,0.45013664]
[1757511120637,0.02589352,113570.0,113560.0,0.28528]
[1757511120839,0.02589352,113570.0,113560.0,0.45013664]
[1757511121040,0.02589352,113570.0,113560.0,0.81093664]
[1757511121841,0.02589352,113570.0,113560.0,0.89898864]
[1757511122037,0.38092191,113590.0,113580.0,0.03528]
[1757511122246,0.38092191,113590.0,113580.0,0.20013664]
[1757511122541,0.02019635,113620.0,113610.0,0.01398]
[1757511122743,0.02019635,113620.0,113610.0,0.20013664]
[1757511122943,0.02019635,113620.0,113610.0,0.03528]
[1757511123335,0.02019635,113620.0,113610.0,0.20013664]
[1757511123537,0.02019635,113620.0,113610.0,0.72579328]
[1757511123937,0.02019635,113620.0,113610.0,1.38985664]
[1757511124338,0.02019635,113620.0,113610.0,0.03528]
[1757511124339,0.18505299,113620.0,113610.0,0.03528]
[1757511124532,0.02619635,113620.0,113610.0,0.03628]
[1757511124738,0.38699635,113620.0,113610.0,0.03628]
[1757511124936,0.02719635,113620.0,113610.0,0.03628]
[1757511125144,0.38799635,113620.0,113610.0,0.03628]
[1757511125647,0.55285299,113620.0,113610.0,0.03628]
[1757511125841,0.38799635,113620.0,113610.0,0.03628]
[1757511126043,0.55285299,113620.0,113610.0,0.03628]
[1757511126443,0.38799635,113620.0,113610.0,0.03628]
[1757511126648,0.55285299,113620.0,113610.0,0.03628]
[1757511126943,0.80285299,113620.0,113610.0,0.01498]
[1757511127142,0.80285299,113620.0,113610.0,0.001]
[1757511127447,1.79874963,113620.0,113610.0,0.001]
[1757511127746,1.79874963,113620.0,113590.0,0.01398]
[1757511127747,1.46903635,113620.0,113590.0,0.01398]
[1757511128043,0.88645664,113600.0,113580.0,0.01398]
[1757511128345,0.52565664,113590.0,113580.0,0.01398]
[1757511128945,0.3608,113590.0,113580.0,0.01398]
[1757511129244,0.77565664,113590.0,113580.0,0.01398]
[1757511130244,0.77565664,113590.0,113570.0,0.01398]
[1757511130444,0.69051328,113580.0,113560.0,0.03180656]
[1757511130644,0.69051328,113580.0,113560.0,0.01398]
[1757511130645,0.3608,113570.0,113560.0,0.01398]
[1757511130845,0.52565664,113570.0,113550.0,0.01357]
[1757511131046,0.52565664,113560.0,113550.0,0.03643]
[1757511131245,0.3608,113570.0,113560.0,0.01357]
[1757511131246,0.52565664,113570.0,113560.0,0.01357]
[1757511131447,0.52565664,113570.0,113560.0,0.03643]
[1757511131953,0.3608,113570.0,113560.0,0.03643]
[1757511132452,0.52565664,113570.0,113560.0,0.03643]
[1757511133453,0.77765664,113570.0,113540.0,0.01357]
[1757511133646,0.69051328,113550.0,113540.0,0.01357]
[1757511134148,1.05131328,113550.0,113540.0,0.01357]
[1757511134456,0.88645664,113550.0,113540.0,0.01357]
[1757511135951,1.71769664,113550.0,113540.0,0.01357]
[1757511136140,1.88255328,113550.0,113530.0,0.0319001]
[1757511136342,0.52565664,113540.0,113530.0,0.0319001]
[1757511136546,0.3608,113540.0,113530.0,0.0319001]
[1757511136747,0.52565664,113540.0,113530.0,0.0319001]
[1757511137640,0.52565664,113540.0,113530.0,0.0329001]
[1757511137843,0.52565664,113540.0,113530.0,0.0349001]
[1757511139053,0.3608,113540.0,113530.0,0.0349001]
[1757511139253,0.52565664,113540.0,113530.0,0.0349001]
[1757511139450,0.3608,113540.0,113530.0,0.0349001]
[1757511139655,0.52565664,113540.0,113530.0,0.0349001]
[1757511139953,1.35657664,113540.0,113530.0,0.0349001]
[1757511140947,1.60657664,113540.0,113530.0,0.0213301]
[1757511141143,1.60629664,113540.0,113530.0,0.0213301]
[1757511141548,0.77565664,113540.0,113530.0,0.0349001]
[1757511141748,1.60633664,113540.0,113530.0,0.0349001]
[1757511142158,1.44148,113540.0,113530.0,0.0349001]
[1757511142356,1.60633664,113540.0,113530.0,0.0349001]
[1757511143352,0.6108,113540.0,113530.0,0.0349001]
[1757511143559,1.4414,113540.0,113530.0,0.0349001]
[1757511143762,1.60625664,113540.0,113530.0,0.0349001]
[1757511145546,1.60713664,113540.0,113530.0,0.0349001]
[1757511145952,1.60713664,113540.0,113530.0,0.03454777]
[1757511146857,0.3608,113540.0,113530.0,0.05740777]
[1757511147054,1.35757664,113540.0,113530.0,0.03454777]
[1757511147454,0.99677664,113540.0,113530.0,0.003]
[1757511147655,1.71837664,113540.0,113530.0,0.003]
[1757511148156,2.13323328,113540.0,113530.0,0.003]
[1757511148356,2.20300969,113540.0,113510.0,0.01357]
[1757511148660,0.32971328,113520.0,113490.0,0.01357]
[1757511148852,0.32971328,113500.0,113480.0,0.03123798]
[1757511149054,0.90479328,113490.0,113480.0,0.03123798]
[1757511149359,1.05131328,113490.0,113480.0,0.03123798]
[1757511149562,1.71973664,113490.0,113480.0,0.03123798]
[1757511149762,0.7216,113490.0,113480.0,0.05409798]
[1757511149963,1.55492,113490.0,113480.0,0.05409798]
[1757511150260,0.7216,113490.0,113480.0,0.05409798]
[1757511150454,1.55492,113490.0,113480.0,0.05409798]
[1757511150651,1.71977664,113490.0,113480.0,0.05409798]
[1757511150854,1.71981664,113490.0,113480.0,0.01357]
[1757511151060,1.35901664,113490.0,113480.0,0.01357]
[1757511151256,0.52565664,113490.0,113480.0,0.01357]
[1757511151567,0.3608,113490.0,113480.0,0.03743]
[1757511151755,0.3608,113490.0,113480.0,0.28743]
[1757511152261,1.88519328,113490.0,113480.0,0.01457]
[1757511152558,1.88519328,113490.0,113480.0,0.001]
[1757511152955,1.72033664,113490.0,113480.0,0.01457]
[1757511153358,1.88519328,113490.0,113480.0,0.01457]
[1757511153559,2.13519328,113490.0,113480.0,0.001]
[1757511153766,2.13719328,113490.0,113470.0,0.01392252]
[1757511153961,2.13719328,113490.0,113470.0,0.03678252]
[1757511153962,1.8608,113480.0,113470.0,0.03678252]
[1757511154170,2.69468,113480.0,113470.0,0.03678252]
[1757511154354,1.8608,113480.0,113470.0,0.03678252]
[1757511154562,1.8608,113480.0,113470.0,0.20163916]
[1757511154758,1.8608,113480.0,113470.0,0.45163916]
[1757511154759,0.3608,113480.0,113470.0,0.45163916]
[1757511155361,0.3638,113480.0,113470.0,0.45163916]
[1757511155565,0.3638,113480.0,113470.0,0.28678252]
[1757511155757,0.3638,113480.0,113470.0,0.45163916]
[1757511155957,0.003,113480.0,113470.0,0.81243916]
[1757511156357,0.002,113490.0,113480.0,0.01357]
[1757511156560,0.002,113490.0,113480.0,0.45045093]
[1757511156757,0.3608,113500.0,113490.0,0.03643]
[1757511156966,0.52482093,113500.0,113490.0,0.03643]
[1757511157158,0.3608,113500.0,113490.0,0.03643]
[1757511158661,0.52582093,113500.0,113490.0,0.01357]
[1757511158859,0.52682093,113500.0,113490.0,0.01357]
[1757511159062,0.3628,113500.0,113490.0,0.01357]
[1757511159263,0.52682093,113500.0,113490.0,0.01357]
[1757511159457,0.3628,113500.0,113490.0,0.01357]
[1757511159666,0.52682093,113500.0,113490.0,0.01357]
[1757511159862,0.52682093,113500.0,113490.0,0.03673]
[1757511160066,0.52682093,113500.0,113490.0,0.45075093]
[1757511160067,0.3628,113500.0,113490.0,0.45075093]
[1757511160272,0.002,113500.0,113490.0,0.45075093]
[1757511160657,0.002,113500.0,113490.0,0.81155093]
[1757511160859,0.02034211,113510.0,113500.0,0.01349]
[1757511161171,0.02067669,113530.0,113520.0,0.03665]
[1757511161372,0.02067669,113530.0,113520.0,0.56147093]
[1757511161562,0.02067669,113530.0,113520.0,0.81147093]
[1757511161765,0.37573,113560.0,113550.0,0.01349]
[1757511161964,0.3608,113560.0,113550.0,0.03665]
[1757511162264,0.53975093,113560.0,113550.0,0.01349]
[1757511162774,0.78975093,113560.0,113540.0,0.01349]
[1757511162971,0.53975093,113550.0,113540.0,0.03665]
[1757511163461,0.37573,113550.0,113540.0,0.03665]
[1757511163870,0.37573,113560.0,113550.0,0.03665]
[1757511164667,0.54675093,113560.0,113550.0,0.03665]
[1757511165169,0.38273,113560.0,113550.0,0.03665]
[1757511166676,0.55075093,113560.0,113550.0,0.01349]
[1757511168575,0.80075093,113560.0,113540.0,0.01349]
[1757511168777,0.53975093,113550.0,113540.0,0.01349]
[1757511169169,0.53975093,113550.0,113530.0,0.01349]
[1757511169364,0.53975093,113540.0,113530.0,0.01349]
[1757511169769,0.78975093,113540.0,113520.0,0.01349]
[1757511169976,0.53975093,113530.0,113520.0,0.01349]
[1757511170575,0.53975093,113530.0,113520.0,0.03665]
[1757511171172,0.78975093,113530.0,113510.0,0.01349]
[1757511171373,0.53975093,113520.0,113500.0,0.39186638]
[1757511171573,0.53975093,113510.0,113500.0,0.03106638]
[1757511172472,0.37573,113510.0,113500.0,0.03106638]
[1757511172781,0.37573,113510.0,113500.0,0.01757638]
[1757511172782,0.78975093,113510.0,113500.0,0.01757638]
[1757511172980,0.78975093,113510.0,113490.0,0.01349]
[1757511173174,0.53975093,113500.0,113490.0,0.01349]
[1757511173370,0.37573,113500.0,113490.0,0.03665]
[1757511174175,0.3608,113500.0,113490.0,0.45067093]
[1757511174379,0.3618,113510.0,113500.0,0.01349]
[1757511174575,0.3618,113510.0,113500.0,0.03665]
[1757511174975,0.37673,113510.0,113500.0,0.03665]
[1757511175173,0.3618,113510.0,113500.0,0.03665]
[1757511175774,0.3608,113520.0,113510.0,0.03665]
[1757511175983,0.3608,113530.0,113520.0,0.03665]
[1757511176376,0.3608,113530.0,113520.0,0.45067093]
[1757511176568,0.3608,113540.0,113530.0,0.01349]
[1757511176778,0.38167792,113550.0,113540.0,0.03665]
[1757511177572,0.56062885,113550.0,113540.0,0.03665]
[1757511177773,0.56062885,113550.0,113530.0,0.01349]
[1757511177973,0.01493,113540.0,113530.0,0.03665]
[1757511178673,0.37573,113540.0,113530.0,0.03665]
[1757511178871,0.01493,113540.0,113530.0,0.03665]
[1757511179080,0.37573,113540.0,113530.0,0.03665]
[1757511179492,0.54475093,113540.0,113530.0,0.01349]
[1757511179982,0.54675093,113540.0,113530.0,0.01349]
[1757511180179,0.3678,113540.0,113530.0,0.03665]
[1757511180479,0.3678,113540.0,113530.0,0.45067093]
[1757511180688,0.007,113540.0,113530.0,0.45067093]
[1757511180872,0.38167792,113550.0,113530.0,0.53874623]
[1757511181178,0.38167792,113550.0,113540.0,1.64815093]
[1757511181179,0.02087792,113550.0,113540.0,1.64815093]
[1757511181386,0.3608,113570.0,113540.0,1.64815093]
[1757511181682,0.01133,113610.0,113580.0,0.01349]
[1757511181683,0.54789093,113590.0,113580.0,0.01349]
[1757511181881,0.54789093,113590.0,113570.0,0.01349]
[1757511182075,0.38387,113580.0,113570.0,0.01349]
[1757511182280,0.38387,113580.0,113570.0,0.03665]
[1757511182587,0.02307,113580.0,113570.0,0.03665]
[1757511182878,0.3608,113590.0,113580.0,0.03665]
[1757511183078,0.38587,113590.0,113580.0,0.03665]
[1757511183881,0.38387,113590.0,113580.0,0.03665]
[1757511184181,0.3608,113590.0,113580.0,0.20067093]
[1757511184885,0.40469513,113600.0,113590.0,0.01349]
[1757511185182,0.40469513,113600.0,113590.0,0.03665]
[1757511185878,0.02082513,113600.0,113590.0,0.56147093]
[1757511186186,0.04389513,113600.0,113590.0,0.03665]
[1757511186482,0.82471606,113600.0,113570.0,0.01349]
[1757511186784,0.18709093,113580.0,113570.0,0.01349]
[1757511187179,0.18709093,113580.0,113570.0,0.03665]
[1757511187180,0.02307,113580.0,113570.0,0.03665]
[1757511187586,0.09361055,113580.0,113570.0,0.03665]
[1757511187984,0.38249,113590.0,113580.0,0.03659]
[1757511188578,0.54651093,113590.0,113580.0,0.01371]
[1757511188773,0.38249,113590.0,113580.0,0.01371]
[1757511189077,0.54651093,113590.0,113580.0,0.01371]
[1757511189387,0.38449,113590.0,113580.0,0.01371]
[1757511189582,0.54851093,113590.0,113580.0,0.01371]
[1757511190484,0.55051093,113590.0,113570.0,0.01349]
[1757511190682,0.38249,113580.0,113570.0,0.03637]
[1757511190878,0.3608,113580.0,113570.0,0.03637]
[1757511191188,0.38249,113580.0,113570.0,0.03637]
[1757511191889,0.45140369,113580.0,113570.0,0.03637]
[1757511192580,0.45240369,113580.0,113570.0,0.03637]
[1757511193084,0.3618,113580.0,113570.0,0.20039093]
[1757511193279,0.001,113580.0,113570.0,1.64815093]
[1757511193678,0.001,113580.0,113570.0,0.81119093]
[1757511193879,0.001,113580.0,113570.0,0.20039093]
[1757511194090,0.02369,113580.0,113570.0,0.03637]
[1757511194278,0.38449,113580.0,113570.0,0.03637]
[1757511194486,0.38449,113580.0,113570.0,0.45039093]
[1757511194487,0.3628,113580.0,113570.0,0.45039093]
[1757511195088,0.002,113580.0,113570.0,0.89923543]
[1757511195287,0.02082513,113600.0,113590.0,0.03659]
[1757511195486,0.02082513,113600.0,113590.0,1.39853093]
[1757511196392,0.02082513,113600.0,113590.0,2.09735993]
[1757511196585,0.02082513,113600.0,113590.0,2.00977093]
[1757511196991,0.02382513,113600.0,113590.0,2.00977093]
[1757511197391,0.52482093,113630.0,113620.0,0.01371]
[1757511197582,0.54651093,113630.0,113620.0,0.01371]
[1757511197783,0.54651093,113630.0,113610.0,0.01371]
[1757511197988,0.54651093,113620.0,113600.0,0.35579]
[1757511198200,0.38249,113610.0,113600.0,0.37867]
[1757511198388,0.02169,113610.0,113600.0,0.37867]
[1757511198584,0.3608,113620.0,113610.0,0.01371]
[1757511198889,0.3608,113620.0,113610.0,0.03659]
[1757511199287,0.38249,113620.0,113610.0,0.03659]
[1757511199692,0.54651093,113620.0,113610.0,0.03659]
[1757511200191,0.63249,113620.0,113610.0,0.01371]
[1757511200492,0.79651093,113620.0,113600.0,0.01371]
[1757511200792,0.54651093,113610.0,113600.0,0.01371]
[1757511200997,0.54651093,113610.0,113590.0,0.01371]
[1757511201291,0.38249,113600.0,113590.0,0.03659]
[1757511201592,0.3608,113610.0,113600.0,0.01371]
[1757511201900,0.38249,113610.0,113600.0,0.03659]
[1757511202090,0.38249,113610.0,113600.0,0.04059]
[1757511202794,0.38249,113620.0,113610.0,0.01371]
[1757511203095,0.02169,113630.0,113620.0,0.03659]
[1757511203597,0.38249,113630.0,113620.0,0.03659]
[1757511204002,0.79651093,113630.0,113610.0,0.01371]
[1757511204195,0.54651093,113630.0,113610.0,0.01371]
[1757511204896,0.38349,113630.0,113620.0,0.03759]
[1757511205597,0.38349,113630.0,113620.0,0.03659]
[1757511206101,0.54751093,113630.0,113620.0,0.03659]
[1757511206402,0.54751093,113630.0,113620.0,0.01371]
[1757511207305,0.38349,113630.0,113620.0,0.03659]
[1757511207799,0.38349,113630.0,113620.0,0.03759]
[1757511208201,0.02269,113630.0,113620.0,0.20161093]
[1757511209502,0.02269,113630.0,113620.0,0.03759]
[1757511209704,0.02269,113630.0,113620.0,0.20161093]
[1757511209899,0.38349,113630.0,113620.0,0.20161093]
[1757511210093,0.02269,113630.0,113620.0,0.20161093]
[1757511210694,0.38349,113630.0,113620.0,0.03759]
[1757511210996,0.79751093,113630.0,113620.0,0.001]
[1757511211506,0.81806354,113630.0,113620.0,0.001]
[1757511212104,1.65614354,113630.0,113620.0,0.001]
[1757511212905,1.49212261,113630.0,113620.0,0.001]
[1757511213104,0.81806354,113630.0,113620.0,0.001]
[1757511215499,0.65404261,113630.0,113620.0,0.01471]
[1757511216105,0.65404261,113630.0,113620.0,0.001]
[1757511216308,0.81806354,113630.0,113620.0,0.001]
[1757511216905,0.81806354,113630.0,113620.0,0.03759]
[1757511217100,0.40404261,113630.0,113620.0,0.03759]
[1757511217605,0.56806354,113630.0,113620.0,0.001]
[1757511218307,0.56885514,113630.0,113620.0,0.001]
[1757511218506,0.40404261,113630.0,113620.0,0.03538]
[1757511221612,0.56885514,113630.0,113620.0,0.03538]
[1757511222115,0.56885514,113630.0,113620.0,0.001]
[1757511223399,0.40404261,113630.0,113620.0,0.03538]
[1757511223604,0.40404261,113630.0,113620.0,0.45019253]
[1757511224005,0.40404261,113630.0,113620.0,0.28538]
[1757511224207,0.40404261,113630.0,113620.0,0.45019253]
[1757511224404,0.40404261,113630.0,113620.0,0.28538]
[1757511227008,0.40404261,113630.0,113620.0,0.45019253]
[1757511227208,0.04324261,113630.0,113620.0,0.45019253]
[1757511227908,0.02155261,113630.0,113620.0,1.64607253]
[1757511228109,0.02155261,113630.0,113620.0,1.73407843]
[1757511228316,0.40335639,113660.0,113650.0,0.03438]
[1757511228608,0.40335639,113660.0,113650.0,0.19919253]
[1757511229115,0.38123639,113660.0,113650.0,0.19919253]
[1757511229618,0.38423639,113660.0,113650.0,0.19919253]
[1757511230007,0.40935639,113660.0,113650.0,0.19919253]
[1757511230717,0.40835639,113660.0,113650.0,0.19919253]
[1757511231011,0.38792,113660.0,113650.0,0.19919253]
[1757511231212,0.55273253,113660.0,113650.0,0.02107]
[1757511231514,0.02212,113640.0,113630.0,0.05247496]
[1757511231716,0.38292,113640.0,113630.0,0.05247496]
[1757511232610,0.02212,113640.0,113630.0,0.05247496]
[1757511232805,0.02212,113640.0,113630.0,0.05347496]
[1757511233007,0.38292,113640.0,113630.0,0.05347496]
[1757511233213,0.38292,113640.0,113630.0,0.05447496]
[1757511233613,0.80473253,113640.0,113630.0,0.02009496]
[1757511233914,0.63992,113640.0,113630.0,0.02009496]
[1757511234420,0.80473253,113640.0,113630.0,0.02009496]
[1757511234613,0.38292,113640.0,113630.0,0.02009496]
[1757511235321,0.38292,113640.0,113630.0,0.21928749]
[1757511236516,0.38292,113640.0,113630.0,0.05447496]
[1757511236822,0.55473253,113640.0,113630.0,0.02009496]
[1757511237222,0.80473253,113640.0,113630.0,0.02009496]
[1757511238315,0.38992,113640.0,113630.0,0.02009496]
[1757511238614,0.38292,113640.0,113630.0,0.21928749]
[1757511239314,0.38292,113640.0,113630.0,0.05447496]
[1757511239514,0.38992,113640.0,113630.0,0.02009496]
[1757511239727,0.80473253,113640.0,113630.0,0.02009496]
[1757511240212,0.38292,113640.0,113630.0,0.05447496]
[1757511240613,0.38292,113640.0,113630.0,0.21928749]
[1757511240814,0.3608,113640.0,113630.0,0.46928749]
[1757511241021,0.3608,113650.0,113640.0,0.01331]
[1757511241221,0.3608,113650.0,113640.0,0.19919253]
[1757511241410,0.3608,113650.0,113640.0,0.03438]
[1757511241721,0.3608,113650.0,113640.0,0.19919253]
[1757511242121,0.3608,113660.0,113650.0,0.03438]
[1757511242415,0.37987483,113660.0,113650.0,0.19919253]
[1757511242611,0.37987483,113660.0,113650.0,0.44919253]
[1757511242811,0.38292,113660.0,113650.0,0.44919253]
[1757511243222,0.3608,113660.0,113650.0,0.44919253]
[1757511243719,0.3618,113660.0,113650.0,0.44919253]
[1757511244321,0.38492,113660.0,113650.0,0.44919253]
[1757511245421,0.38492,113660.0,113650.0,0.28438]
[1757511245624,0.38492,113660.0,113650.0,0.44919253]
[1757511246123,0.3628,113660.0,113650.0,0.44919253]
[1757511246320,0.002,113660.0,113650.0,0.89797533]
[1757511247812,0.002,113660.0,113650.0,0.9068225]
[1757511249228,0.002,113660.0,113650.0,0.55999253]
[1757511249527,0.002,113660.0,113650.0,1.47969533]
[1757511249828,0.002,113660.0,113650.0,1.39179253]
[1757511250916,0.002,113660.0,113650.0,1.47977533]
[1757511251524,0.002,113660.0,113650.0,1.39179253]
[1757511252323,0.002,113660.0,113650.0,0.39518]
[1757511252523,0.02311,113660.0,113650.0,1.39103253]
[1757511252725,0.02311,113660.0,113650.0,1.03023253]
[1757511252930,0.002,113660.0,113650.0,1.47901533]
[1757511253522,0.002,113660.0,113650.0,1.39103253]
[1757511253719,0.002,113660.0,113650.0,1.3997387]
[1757511254224,0.002,113660.0,113650.0,1.44669384]
[1757511254622,0.002,113660.0,113650.0,1.53467664]
[1757511254823,0.002,113660.0,113650.0,1.78467664]
[1757511255123,0.04169853,113690.0,113680.0,0.03519]
[1757511255329,0.04169853,113690.0,113680.0,1.39300253]
[1757511255531,0.02058853,113690.0,113680.0,1.39300253]
[1757511257025,0.02058853,113690.0,113680.0,0.39599]
[1757511257335,0.04169853,113690.0,113680.0,1.03264253]
[1757511257834,0.04169853,113690.0,113680.0,0.20100253]
[1757511258028,0.04169853,113690.0,113680.0,1.03256253]
[1757511258222,0.04169853,113690.0,113680.0,1.39336253]
[1757511258431,0.04169853,113690.0,113680.0,1.03256253]
[1757511258626,0.04169853,113690.0,113680.0,0.20100253]
[1757511258836,0.65249853,113690.0,113680.0,0.86751]
[1757511259933,0.02058853,113690.0,113680.0,1.39312253]
[1757511260136,0.02058853,113690.0,113680.0,1.03232253]
[1757511261634,0.02058853,113690.0,113680.0,0.20100253]
[1757511261830,0.84716921,113690.0,113680.0,0.001]
[1757511262934,0.06077668,113690.0,113680.0,1.39248253]
[1757511263240,0.04169853,113690.0,113680.0,1.03168253]
[1757511264037,0.04169853,113690.0,113680.0,1.03172253]
[1757511264234,0.02058853,113690.0,113680.0,1.03172253]
[1757511264831,0.02058853,113690.0,113680.0,0.86691]
[1757511265035,0.02058853,113690.0,113680.0,1.03172253]
[1757511265431,0.02058853,113690.0,113680.0,0.86691]
[1757511265632,0.02058853,113690.0,113680.0,1.03172253]
[1757511266033,0.02058853,113690.0,113680.0,1.39252253]
[1757511266341,0.02058853,113690.0,113680.0,1.64252253]
[1757511267941,0.02058853,113690.0,113680.0,1.73048213]
[1757511268141,0.02058853,113690.0,113680.0,1.64252253]
[1757511268630,0.02058853,113690.0,113680.0,1.39252253]
[1757511268834,0.02058853,113690.0,113680.0,1.48048213]
[1757511269134,0.02058853,113690.0,113680.0,1.64252253]
[1757511269540,0.02058853,113690.0,113680.0,1.71237484]
[1757511271141,0.02058853,113690.0,113680.0,1.80033444]
[1757511271341,1.8608,113720.0,113710.0,0.01377]
[1757511271543,0.40101394,113720.0,113710.0,1.02928253]
[1757511271739,0.04021394,113720.0,113710.0,1.39008253]
[1757511272043,0.04021394,113720.0,113710.0,1.38980253]
[1757511272446,0.04021394,113720.0,113710.0,0.56080253]
[1757511272746,0.04021394,113720.0,113710.0,1.11673893]
[1757511272747,0.02210394,113720.0,113710.0,1.11673893]
[1757511273045,0.003,113720.0,113710.0,0.56080253]
[1757511273240,0.003,113720.0,113710.0,1.38948253]
[1757511273644,0.006,113720.0,113710.0,0.89873893]
[1757511274145,0.006,113720.0,113710.0,1.72725893]
[1757511274343,0.02209736,113720.0,113710.0,1.22451]
[1757511274547,0.04020736,113720.0,113710.0,1.22431]
[1757511274743,0.04020736,113720.0,113710.0,0.03519]
[1757511274937,0.04020736,113720.0,113710.0,1.38920253]
[1757511275139,0.04020736,113720.0,113710.0,1.39020253]
[1757511275539,0.01909736,113720.0,113710.0,1.39020253]
[1757511275741,0.01909736,113720.0,113710.0,1.39120253]
[1757511275937,0.01909736,113720.0,113710.0,0.56280253]
[1757511276134,0.04020736,113720.0,113710.0,1.39100253]
[1757511276539,0.04020736,113720.0,113710.0,0.56280253]
[1757511276740,0.05362736,113720.0,113710.0,0.86499]
[1757511276942,0.46843989,113720.0,113710.0,0.02342]
[1757511277134,0.82923989,113720.0,113710.0,0.002]
[1757511278433,0.01342,113700.0,113680.0,0.60884]
[1757511278646,0.19982656,113690.0,113680.0,0.62995]
[1757511278844,0.03631,113690.0,113680.0,0.62995]
[1757511279240,0.03631,113690.0,113680.0,0.64359]
[1757511279441,0.02289,113690.0,113680.0,0.64359]
[1757511279642,0.81062656,113690.0,113670.0,0.01364]
[1757511279842,0.38369,113680.0,113670.0,0.86191]
[1757511280045,0.39711,113680.0,113670.0,0.86191]
[1757511280635,0.81062656,113680.0,113660.0,0.43954319]
[1757511280944,0.39711,113680.0,113670.0,0.02111]
[1757511281350,0.39711,113680.0,113670.0,0.02311]
[1757511281739,0.02289,113680.0,113670.0,0.03675]
[1757511282144,0.02289,113680.0,113670.0,0.20026656]
[1757511282450,0.38369,113690.0,113680.0,0.03475]
[1757511282636,0.38369,113690.0,113680.0,1.02514656]
[1757511282839,0.03631,113680.0,113670.0,1.22443]
[1757511283050,0.19982656,113680.0,113670.0,0.84999]
[1757511283242,0.39711,113680.0,113670.0,0.85299]
[1757511283753,0.41631134,113680.0,113670.0,0.85099]
[1757511284445,0.39711,113680.0,113670.0,0.85099]
[1757511284645,0.39711,113680.0,113670.0,0.85299]
[1757511284849,0.81062656,113680.0,113670.0,0.002]
[1757511285444,0.82982607,113680.0,113670.0,0.002]
[1757511285749,0.03631,113660.0,113650.0,0.58979514]
[1757511285950,0.39711,113660.0,113650.0,0.54284]
[1757511286653,0.38369,113660.0,113650.0,0.62454514]
[1757511286852,0.38369,113660.0,113650.0,0.7880617]
[1757511287055,0.38369,113660.0,113650.0,0.7920617]
[1757511287951,0.38369,113660.0,113650.0,0.62854514]
[1757511288253,0.38369,113660.0,113650.0,0.63454514]
[1757511289355,0.38369,113660.0,113650.0,0.09170514]
[1757511289651,0.81062656,113660.0,113650.0,0.01]
[1757511290357,0.64711,113660.0,113650.0,0.03111]
[1757511290653,0.39711,113660.0,113650.0,0.03111]
[1757511290855,0.38369,113660.0,113650.0,0.04475]
[1757511291148,0.39711,113660.0,113650.0,0.03111]
[1757511291855,0.39711,113660.0,113650.0,0.04475]
[1757511292063,0.38369,113660.0,113650.0,0.04475]
[1757511292952,0.38369,113660.0,113650.0,0.20826656]
[1757511293455,0.39711,113660.0,113650.0,0.03111]
[1757511294454,0.38369,113660.0,113650.0,0.04475]
[1757511294649,0.02289,113660.0,113650.0,0.56906656]
[1757511294853,0.01342,113670.0,113660.0,0.01364]
[1757511294854,0.02289,113670.0,113660.0,0.01364]
[1757511295153,0.02289,113670.0,113660.0,0.55906656]
[1757511295351,0.02289,113670.0,113660.0,0.03475]
[1757511295554,0.02289,113670.0,113660.0,0.19826656]
[1757511296652,0.02289,113670.0,113660.0,0.20126656]
[1757511297156,0.02289,113670.0,113660.0,0.20226656]
[1757511297854,0.02289,113670.0,113660.0,0.56306656]
[1757511298053,0.81062656,113670.0,113640.0,0.87475514]
[1757511298254,0.39651,113650.0,113640.0,0.87475514]
[1757511298548,0.56002656,113650.0,113640.0,0.04695514]
[1757511298755,0.01342,113640.0,113630.0,0.87463514]
[1757511298950,0.39711,113640.0,113630.0,0.87467514]
[1757511299349,0.39711,113640.0,113630.0,0.04695514]
[1757511299350,0.81062656,113640.0,113630.0,0.04695514]
[1757511299751,0.03631,113630.0,113620.0,0.87503514]
[1757511299950,0.39711,113630.0,113620.0,0.89614514]
[1757511300250,0.38369,113630.0,113620.0,0.08170514]
[1757511300450,0.39711,113630.0,113610.0,0.45486727]
[1757511300652,0.39711,113630.0,113620.0,0.87500168]
[1757511300846,0.39711,113630.0,113620.0,0.8282]
[1757511301250,0.39711,113630.0,113620.0,0.87500191]
[1757511301460,0.46810527,113630.0,113620.0,0.87500191]
[1757511301656,0.09388527,113630.0,113620.0,0.19826656]
[1757511301963,0.09388527,113630.0,113620.0,1.02618656]
[1757511302154,0.09388527,113630.0,113620.0,0.55906656]
[1757511302358,0.37362,113650.0,113630.0,0.01364]
[1757511302559,0.38369,113640.0,113630.0,0.90959488]
[1757511302858,0.38369,113640.0,113630.0,0.24507144]
[1757511303055,0.38369,113640.0,113630.0,0.90939488]